bitfinex/quotes_SOLUSD_20250617
["timestamp","ask_amount","ask_price","bid_price","bid_amount"]
[1750172247630,177.76,149.42,149.36,23.43331547]
[1750172247940,184.34652928,149.42,149.36,23.43331547]
[1750172248136,177.76,149.42,149.38,6.58652928]
[1750172248437,6.58652928,149.41,149.36,6.69523299]
[1750172248639,35.32652928,149.4,149.36,6.69523299]
[1750172249720,28.74,149.4,149.36,6.69523299]
[1750172249921,35.32652928,149.4,149.36,13.28176227]
[1750172250344,28.74,149.4,149.36,30.01984475]
[1750172250545,28.72,149.41,149.38,6.58652928]
[1750172250751,177.72,149.42,149.36,23.43331547]
[1750172251084,6.58652928,149.41,149.36,23.43331547]
[1750172251233,28.72,149.4,149.36,23.43331547]
[1750172251417,28.72,149.4,149.36,30.01984475]
[1750172251612,35.30652928,149.4,149.36,13.28176227]
[1750172252135,6.58652928,149.39,149.36,6.69523299]
[1750172252327,6.58652928,149.39,149.35,11.65138175]
[1750172252328,155.58652928,149.38,149.35,11.76035809]
[1750172252530,155.87085242,149.37,149.35,5.06485247]
[1750172252925,6.58652928,149.36,149.35,5.06485247]
[1750172253137,143.93514753,149.35,149.33,6.69628272]
[1750172253334,0.28432314,149.34,149.32,6.69702652]
[1750172253545,179.22167681,149.35,149.32,6.69702652]
[1750172253743,172.63514753,149.35,149.32,13.2835558]
[1750172254034,172.63514753,149.35,149.32,6.69702652]
[1750172254351,143.93514753,149.35,149.32,6.69702652]
[1750172255437,143.93514753,149.35,149.32,13.2835558]
[1750172255643,143.93514753,149.35,149.32,6.69702652]
[1750172255845,143.93514753,149.35,149.32,13.2835558]
[1750172256050,143.93514753,149.35,149.33,6.58652928]
[1750172256355,143.93514753,149.35,149.32,30.0261221]
[1750172256861,143.93514753,149.35,149.32,6.69702652]
[1750172257544,143.93514753,149.35,149.32,13.2835558]
[1750172258361,143.93514753,149.35,149.32,30.0261221]
[1750172258759,143.93514753,149.35,149.33,6.58652928]
[1750172259767,143.93514753,149.35,149.32,6.58652928]
[1750172259969,143.93514753,149.35,149.28,56.93812564]
[1750172260145,143.93514753,149.35,149.32,6.58652928]
[1750172260554,143.93514753,149.34,149.28,23.44587351]
[1750172260755,143.93514753,149.34,149.32,6.58652928]
[1750172261655,143.93514753,149.34,149.33,6.69657804]
[1750172262376,143.93514753,149.34,149.33,13.28310732]
[1750172263081,150.73514753,149.38,149.33,30.02455244]
[1750172263281,179.31514753,149.38,149.35,6.58652928]
[1750172263465,179.29514753,149.38,149.35,6.58652928]
[1750172263991,179.29514753,149.38,149.36,6.69523299]
[1750172264569,150.73514753,149.38,149.36,6.69523299]
[1750172264776,179.29514753,149.38,149.36,6.69523299]
[1750172266065,150.73514753,149.38,149.36,13.28176227]
[1750172266386,150.73514753,149.38,149.37,6.58652928]
[1750172266881,143.93514753,149.38,149.36,13.28176227]
[1750172267189,143.93514753,149.38,149.36,6.69523299]
[1750172267558,143.93514753,149.38,149.36,13.28176227]
[1750172268773,143.93514753,149.38,149.36,6.69523299]
[1750172270780,143.93514753,149.38,149.33,16.74137078]
[1750172270781,28.5,149.37,149.35,6.58652928]
[1750172271091,172.41514753,149.38,149.35,6.58652928]
[1750172271983,172.41514753,149.38,149.36,6.69523299]
[1750172276288,172.41514753,149.38,149.36,13.28176227]
[1750172276878,172.41514753,149.38,149.36,6.69523299]
[1750172277767,169.17132567,149.37,149.31,6.69747505]
[1750172277965,6.58652928,149.34,149.31,6.69747505]
[1750172278197,28.4,149.34,149.31,6.69747505]
[1750172278873,28.4,149.34,149.31,13.28400433]
[1750172279279,28.4,149.34,149.32,6.58652928]
[1750172279867,28.4,149.34,149.31,23.44116267]
[1750172280190,28.46,149.35,149.31,6.69747505]
[1750172280397,6.58652928,149.34,149.31,6.69747505]
[1750172280990,28.46,149.35,149.31,6.69747505]
[1750172281193,35.04652928,149.35,149.31,6.69747505]
[1750172281983,28.46,149.35,149.31,6.69747505]
[1750172282296,35.04652928,149.35,149.31,6.69747505]
[1750172283295,143.93514753,149.34,149.31,13.28400433]
[1750172283496,6.58,149.36,149.31,13.28400433]
[1750172283700,143.93514753,149.38,149.35,6.58652928]
[1750172284000,143.93514753,149.38,149.36,6.58652928]
[1750172284389,143.93514753,149.38,149.35,6.58652928]
[1750172284699,143.93514753,149.38,149.36,6.58652928]
[1750172285917,143.93514753,149.38,149.37,6.58652928]
[1750172286478,143.93514753,149.38,149.37,13.28131404]
[1750172287387,6.58,149.41,149.37,30.01827594]
[1750172287593,6.58,149.41,149.4,6.58652928]
[1750172287905,172.33514753,149.43,149.37,23.43174666]
[1750172288108,143.93514753,149.42,149.38,6.58652928]
[1750172288486,143.93514753,149.42,149.39,6.69388847]
[1750172289113,143.93514753,149.42,149.39,13.28041775]
[1750172289890,172.33514753,149.42,149.39,13.28041775]
[1750172290504,172.33514753,149.42,149.34,56.9171019]
[1750172290809,143.93514753,149.41,149.34,56.9171019]
[1750172291007,143.93514753,149.41,149.35,0.14216157]
[1750172291901,143.93514753,149.41,149.4,6.58652928]
[1750172292397,143.93514753,149.41,149.4,13.2799697]
[1750172293093,143.93514753,149.41,149.4,6.69344042]
[1750172295007,28.38,149.42,149.4,6.69344042]
[1750172295333,34.96652928,149.42,149.34,56.9171019]
[1750172295487,149.0,149.4,149.39,6.58652928]
[1750172297510,149.0,149.4,149.39,13.28041775]
[1750172297910,149.0,149.4,149.39,6.69388847]
[1750172298105,149.0,149.4,149.39,13.28041775]
[1750172299817,149.0,149.4,149.39,6.58652928]
[1750172300941,149.0,149.4,149.34,56.9171019]
[1750172301109,149.0,149.39,149.34,56.9171019]
[1750172301289,149.0,149.39,149.38,6.58652928]
[1750172301795,149.0,149.39,149.38,13.28086587]
[1750172302838,149.0,149.39,149.38,6.69433659]
[1750172303020,149.0,149.39,149.34,23.43638]
[1750172303220,149.0,149.38,149.34,13.28265891]
[1750172303406,155.58652928,149.38,149.34,6.69612963]
[1750172303719,35.08652928,149.37,149.33,6.58652928]
[1750172303914,35.08652928,149.37,149.33,6.69629231]
[1750172304896,6.58652928,149.36,149.31,16.74314996]
[1750172305124,35.08652928,149.37,149.31,16.74314996]
[1750172305418,28.5,149.37,149.3,6.69792364]
[1750172305625,6.58652928,149.36,149.32,6.58652928]
[1750172305831,35.08652928,149.37,149.32,6.58652928]
[1750172306505,35.08652928,149.37,149.33,6.58652928]
[1750172307144,35.08652928,149.37,149.33,13.2827769]
[1750172308197,35.08652928,149.37,149.3,23.44273274]
[1750172308411,6.58652928,149.36,149.32,6.58652928]
[1750172309402,28.5,149.37,149.32,6.58652928]
[1750172309603,149.0,149.36,149.3,23.44273274]
[1750172309909,35.08652928,149.35,149.31,6.58652928]
[1750172310224,28.5,149.35,149.32,6.69702652]
[1750172310409,35.08652928,149.35,149.32,6.69702652]
[1750172311226,35.08652928,149.35,149.31,6.6973657]
[1750172311932,28.5,149.35,149.31,6.6973657]
[1750172312235,35.08652928,149.35,149.31,6.6973657]
[1750172312603,28.5,149.35,149.32,6.58652928]
[1750172312902,149.0,149.34,149.33,6.58652928]
[1750172313509,149.0,149.34,149.31,6.6973657]
[1750172313711,149.0,149.34,149.33,6.58652928]
[1750172314727,149.0,149.34,149.33,13.28310732]
[1750172315310,149.0,149.34,149.33,6.69657804]
[1750172315521,149.0,149.34,149.33,13.28310732]
[1750172316635,149.0,149.34,149.33,6.69657804]
[1750172316936,149.0,149.34,149.33,6.58652928]
[1750172317413,6.58652928,149.37,149.33,6.58652928]
[1750172317615,35.02652928,149.37,149.32,6.69702652]
[1750172317938,6.58652928,149.36,149.32,6.69702652]
[1750172318233,6.58652928,149.36,149.32,13.2835558]
[1750172318612,28.44,149.37,149.32,13.2835558]
[1750172318815,6.58652928,149.36,149.32,13.2835558]
[1750172319029,35.02652928,149.37,149.32,6.69702652]
[1750172319206,35.02652928,149.37,149.33,6.58652928]
[1750172319406,35.02652928,149.37,149.32,6.69702652]
[1750172319407,6.58652928,149.36,149.32,13.2835558]
[1750172320134,35.02652928,149.37,149.32,13.2835558]
[1750172322036,162.1740392,149.39,149.32,13.2835558]
[1750172322037,149.0,149.39,149.32,23.43959282]
[1750172322337,184.00652928,149.39,149.35,6.58652928]
[1750172322511,184.00652928,149.39,149.34,6.58652928]
[1750172322840,184.08652928,149.39,149.34,6.58652928]
[1750172323430,28.5,149.38,149.34,6.58652928]
[1750172323818,35.08652928,149.38,149.34,6.69612963]
[1750172324231,28.5,149.38,149.34,13.28265891]
[1750172324629,28.5,149.38,149.34,6.69612963]
[1750172324840,28.5,149.38,149.34,13.28265891]
[1750172325020,28.5,149.38,149.34,6.69612963]
[1750172325214,35.08652928,149.38,149.34,13.28265891]
[1750172325756,28.48,149.38,149.34,13.28265891]
[1750172326527,35.06652928,149.38,149.34,6.69612963]
[1750172326917,35.06652928,149.38,149.34,13.28265891]
[1750172327117,28.48,149.38,149.34,13.28265891]
[1750172327316,28.48,149.38,149.34,6.69612963]
[1750172327544,149.0,149.37,149.34,13.28265891]
[1750172330315,149.0,149.37,149.34,6.58652928]
[1750172330645,149.0,149.37,149.33,6.58652928]
[1750172331031,155.58652928,149.37,149.33,6.58652928]
[1750172331217,149.0,149.37,149.33,6.58652928]
[1750172332246,149.0,149.37,149.34,6.58652928]
[1750172332844,149.0,149.37,149.35,6.69568128]
[1750172333445,149.0,149.36,149.35,6.69568128]
[1750172333629,28.48,149.38,149.35,6.69568128]
[1750172334152,35.06652928,149.38,149.35,6.69568128]
[1750172334539,28.48,149.38,149.35,6.69568128]
[1750172334734,28.38,149.38,149.35,13.28221056]
[1750172334939,28.36,149.39,149.35,13.28221056]
[1750172335137,34.94652928,149.39,149.35,6.69568128]
[1750172336032,6.58652928,149.39,149.35,6.69568128]
[1750172336339,34.92652928,149.39,149.35,13.28221056]
[1750172336924,34.92652928,149.39,149.35,6.69568128]
[1750172337151,34.92652928,149.39,149.35,5.69568128]
[1750172338354,34.92652928,149.39,149.32,23.43959282]
[1750172338538,34.92652928,149.39,149.34,6.58652928]
[1750172339048,149.0,149.35,149.34,6.58652928]
[1750172339257,149.0,149.35,149.33,6.58652928]
[1750172339749,149.0,149.35,149.34,6.58652928]
[1750172340328,149.0,149.35,149.34,13.28265891]
[1750172340627,149.0,149.35,149.34,6.69612963]
[1750172341833,149.0,149.35,149.34,13.28265891]
[1750172342344,34.88652928,149.38,149.34,6.69612963]
[1750172342739,14.4349,149.41,149.37,6.58652928]
[1750172343059,33.21011408,149.4,149.37,6.58652928]
[1750172343258,28.3,149.4,149.36,6.58652928]
[1750172343562,6.48,149.41,149.37,6.58652928]
[1750172344058,6.48,149.41,149.38,6.58652928]
[1750172344244,6.48,149.41,149.39,6.58652928]
[1750172346974,28.3,149.42,149.39,13.28028614]
[1750172347864,28.3,149.42,149.39,6.69375686]
[1750172348067,28.3,149.42,149.39,13.28028614]
[1750172348271,149.0,149.4,149.39,13.28028614]
[1750172348558,28.3,149.42,149.39,13.28028614]
[1750172349735,28.3,149.42,149.39,6.69375686]
[1750172349936,28.3,149.42,149.39,13.28028614]
[1750172350664,34.88652928,149.42,149.36,6.69523299]
[1750172350835,34.88652928,149.42,149.36,13.28176227]
[1750172350836,149.0,149.39,149.36,13.28176227]
[1750172351033,6.58652928,149.41,149.36,13.28176227]
[1750172351034,149.0,149.38,149.36,6.69523299]
[1750172352257,149.0,149.37,149.36,6.69523299]
[1750172352565,149.0,149.37,149.35,6.69554327]
[1750172353748,149.0,149.37,149.35,13.28207255]
[1750172354063,149.0,149.37,149.34,6.58652928]
[1750172354569,149.0,149.37,149.32,6.69702652]
[1750172354744,155.58652928,149.36,149.32,13.2835558]
[1750172354938,177.24,149.36,149.32,13.2835558]
[1750172355262,149.0,149.36,149.35,6.58652928]
[1750172356453,149.0,149.36,149.35,13.28221056]
[1750172357475,149.0,149.36,149.35,6.69568128]
[1750172357655,149.0,149.36,149.35,13.28221056]
[1750172358363,149.0,149.36,149.35,6.58652928]
[1750172359878,149.0,149.36,149.32,23.43959282]
[1750172360046,149.0,149.36,149.35,6.58652928]
[1750172360581,149.0,149.36,149.35,13.28221056]
[1750172363755,149.0,149.36,149.33,13.28310732]
[1750172363956,149.0,149.36,149.3,23.44273274]
[1750172364160,149.0,149.35,149.3,23.44273274]
[1750172364347,149.0,149.35,149.33,6.58652928]
[1750172364549,149.0,149.34,149.33,6.58652928]
[1750172366200,149.0,149.34,149.33,13.28310732]
[1750172369053,149.0,149.34,149.33,6.69657804]
[1750172369360,149.0,149.34,149.33,13.28310732]
[1750172372992,149.0,149.34,149.33,6.69657804]
[1750172373172,149.0,149.34,149.33,13.28310732]
[1750172373486,149.0,149.34,149.33,6.69657804]
[1750172374069,149.0,149.34,149.33,13.28310732]
[1750172374692,149.0,149.34,149.33,6.69657804]
[1750172376576,34.84652928,149.36,149.33,6.69657804]
[1750172376780,6.58652928,149.35,149.33,6.69657804]
[1750172377774,28.26,149.36,149.32,6.69702652]
[1750172377977,34.82652928,149.35,149.32,6.69702652]
[1750172378369,28.24,149.35,149.32,6.69702652]
[1750172378868,34.82652928,149.35,149.32,6.69702652]
[1750172380092,34.82652928,149.35,149.31,6.58652928]
[1750172380093,6.58652928,149.34,149.31,6.69730738]
[1750172380476,28.24,149.35,149.31,6.69730738]
[1750172380477,34.82652928,149.35,149.31,6.69730738]
[1750172380884,155.58652928,149.33,149.29,6.69837229]
[1750172381228,155.58652928,149.32,149.29,6.69837229]
[1750172381900,155.58652928,149.32,149.27,23.44632307]
[1750172382270,149.0,149.32,149.27,30.03285235]
[1750172382465,155.58652928,149.32,149.27,30.03285235]
[1750172383178,28.24,149.31,149.27,30.03285235]
[1750172383702,34.82652928,149.31,149.27,6.69926977]
[1750172384093,6.58652928,149.29,149.26,1.3997008]
[1750172384293,183.84652928,149.28,149.26,1.3997008]
[1750172384502,177.26,149.28,149.26,1.3997008]
[1750172384677,183.84652928,149.28,149.26,1.3997008]
[1750172385006,155.58652928,149.27,149.26,1.3997008]
[1750172385184,176.03413357,149.27,149.26,1.3997008]
[1750172385381,187.51246304,149.27,149.26,1.3997008]
[1750172385591,31.92592291,149.27,149.26,1.3997008]
[1750172385800,38.51245219,149.27,149.26,1.3997008]
[1750172385982,45.21172196,149.27,149.26,1.3997008]
[1750172386185,71.21172196,149.27,149.26,1.3997008]
[1750172386405,71.21172196,149.27,149.2,8.33333333]
[1750172386406,26.0,149.23,149.2,4.81893333]
[1750172386602,13.59954327,149.21,149.11,5.11218754]
[1750172386909,19.07613357,149.18,149.11,1.62698754]
[1750172387113,19.07613357,149.18,149.0,0.15681818]
[1750172387114,26.0,149.09,149.0,0.15681818]
[1750172387410,26.0,149.03,149.0,0.15681818]
[1750172387611,58.42,149.03,149.0,0.15681818]
[1750172387907,6.58652928,149.01,149.0,0.15681818]
[1750172388107,4.88105768,149.01,149.0,0.15681818]
[1750172388288,6.58652928,149.01,149.0,0.15681818]
[1750172388611,39.30652928,149.01,149.0,0.15681818]
[1750172388799,44.08439939,149.01,149.0,0.15681818]
[1750172389321,63.01837139,149.01,149.0,0.15681818]
[1750172389626,63.16053296,149.01,149.0,0.15681818]
[1750172389776,18.933972,149.0,148.93,0.18]
[1750172390091,11.36439939,148.97,148.93,0.18]
[1750172390297,11.36439939,148.97,148.86,5.15952261]
[1750172390298,26.0,148.94,148.86,5.15952261]
[1750172390473,35.34942195,148.96,148.86,5.15952261]
[1750172390670,26.0,148.96,148.87,11.36439939]
[1750172390875,33.26,148.97,148.86,11.87719986]
[1750172391105,11.36439939,148.88,148.86,11.87719986]
[1750172391281,34.04,148.93,148.86,5.15952261]
[1750172391877,26.0,148.9,148.86,5.15952261]
[1750172392107,26.0,148.88,148.86,5.15952261]
[1750172392574,11.36439939,148.87,148.86,5.15952261]
[1750172392778,26.0,148.88,148.86,5.15952261]
[1750172392978,69.37501477,148.92,148.86,5.15952261]
[1750172393193,62.66,148.92,148.86,5.15952261]
[1750172393397,36.66,148.92,148.86,1.79850863]
[1750172393597,26.0,148.91,148.86,1.79850863]
[1750172393797,26.0,148.89,148.86,1.79850863]
[1750172393998,12.17715578,148.9,148.86,1.79850863]
[1750172394517,18.89328592,148.9,148.86,1.79850863]
[1750172394694,38.17715578,148.9,148.86,1.79850863]
[1750172395008,12.17715578,148.9,148.86,1.79850863]
[1750172395187,11.36439939,148.87,148.86,1.79850863]
[1750172395387,12.17715578,148.9,148.86,1.79850863]
[1750172396387,12.17715578,148.9,148.86,8.5161427]
[1750172396907,12.17715578,148.9,148.89,11.36439939]
[1750172397274,8.28104545,149.01,148.92,26.0]
[1750172397482,8.28104545,149.01,148.96,11.36439939]
[1750172397483,19.64544484,149.01,148.96,11.36439939]
[1750172397685,8.28104545,149.01,148.97,11.36439939]
[1750172398004,8.28104545,149.01,148.98,11.36439939]
[1750172398398,8.28104545,149.01,148.92,23.5025517]
[1750172398572,8.28104545,149.01,148.98,11.36439939]
[1750172398776,8.28104545,149.01,148.99,11.36439939]
[1750172398978,8.28104545,149.01,148.98,11.36439939]
[1750172399219,8.28104545,149.01,148.95,26.0]
[1750172399423,8.28104545,149.01,148.98,11.36439939]
[1750172399579,8.28104545,149.01,148.92,25.1612517]
[1750172399775,11.36439939,148.98,148.93,11.36439939]
[1750172399975,8.28104545,149.01,148.92,8.37371477]
[1750172400193,8.28104545,149.01,148.94,11.36439939]
[1750172400397,11.36439939,148.98,148.93,11.36439939]
[1750172400600,14.99201076,149.01,148.92,8.37371477]
[1750172400819,14.99201076,149.01,148.91,13.00191683]
[1750172401105,14.99201076,149.01,148.91,6.71541683]
[1750172401314,41.76940825,149.01,148.87,6.7172701]
[1750172401616,26.0,148.98,148.87,23.51044535]
[1750172401979,32.71243583,148.98,148.87,23.51044535]
[1750172402511,26.0,148.98,148.87,23.51044535]
[1750172402732,11.36439939,148.94,148.89,11.36439939]
[1750172403010,26.0,148.98,148.88,11.36439939]
[1750172403011,11.36439939,148.93,148.88,11.36439939]
[1750172403230,11.36439939,148.93,148.87,6.7172701]
[1750172403376,11.36439939,148.9,148.87,6.7172701]
[1750172403583,11.36439939,148.92,148.88,11.36439939]
[1750172403896,0.28432314,148.97,148.87,23.51044535]
[1750172404220,11.36439939,148.95,148.87,6.7172701]
[1750172404517,11.36439939,148.9,148.87,6.7172701]
[1750172404723,11.36439939,148.89,148.87,6.7172701]
[1750172404880,11.36439939,148.88,148.86,1.79850863]
[1750172405077,11.36439939,148.87,148.86,1.79850863]
[1750172405689,0.42648471,148.93,148.86,8.51612239]
[1750172405893,0.42648471,148.93,148.86,1.79850863]
[1750172406081,11.36439939,148.87,148.86,1.79850863]
[1750172407190,67.80493235,148.87,148.86,1.79850863]
[1750172407390,67.80493235,148.87,148.76,13.2]
[1750172407391,19.07613357,148.86,148.74,6.72314105]
[1750172407605,30.44053296,148.86,148.76,11.36439939]
[1750172407804,10.0,148.9,148.74,23.53027341]
[1750172408022,11.36439939,148.77,148.72,6.72404518]
[1750172408333,11.36439939,148.73,148.71,6.72445702]
[1750172408503,0.14216157,148.78,148.71,6.22445702]
[1750172408697,26.0,148.82,148.72,11.36439939]
[1750172409000,44.933972,148.85,148.74,26.0]
[1750172409202,11.36439939,148.79,148.74,26.0]
[1750172409395,11.36439939,148.79,148.74,37.36439939]
[1750172409624,0.14216157,148.83,148.76,11.36439939]
[1750172409804,11.36439939,148.8,148.74,26.0]
[1750172410012,11.36439939,148.8,148.76,6.72223716]
[1750172410218,0.14216157,148.83,148.76,6.72223716]
[1750172410414,11.36439939,148.8,148.76,6.72223716]
[1750172410626,0.28432314,148.83,148.76,6.72223716]
[1750172410796,11.36439939,148.79,148.76,6.72223716]
[1750172410999,0.28432314,148.83,148.76,6.72223716]
[1750172411278,11.36439939,148.79,148.76,6.72223716]
[1750172411523,11.36439939,148.77,148.76,6.72223716]
[1750172411735,11.36439939,148.77,148.74,6.72314105]
[1750172411947,11.36439939,148.76,148.74,6.72314105]
[1750172412112,0.14216157,148.8,148.71,6.72449734]
[1750172412300,0.28432314,148.78,148.71,6.72449734]
[1750172412498,11.36439939,148.75,148.71,18.08889673]
[1750172412738,0.42648471,148.8,148.74,11.36439939]
[1750172413040,16.45692272,148.75,148.71,6.72449734]
[1750172413937,149.0,148.79,148.74,16.45692272]
[1750172414148,149.0,148.79,148.71,23.53574069]
[1750172414149,149.0,148.79,148.77,6.7217853]
[1750172414447,149.0,148.79,148.74,6.72314105]
[1750172414598,16.45692272,148.75,148.74,6.72314105]
[1750172415054,16.45692272,148.75,148.7,16.81188015]
[1750172415055,19.07613357,148.78,148.7,33.26880287]
[1750172415269,16.45692272,148.77,148.72,16.45692272]
[1750172415424,16.45692272,148.77,148.73,16.45692272]
[1750172415751,149.0,148.79,148.74,16.45692272]
[1750172415965,16.45692272,148.76,148.69,26.0]
[1750172416131,16.45692272,148.74,148.7,6.72494956]
[1750172416448,149.0,148.79,148.72,16.45692272]
[1750172416621,16.45692272,148.77,148.72,16.45692272]
[1750172417331,149.0,148.79,148.7,23.53732346]
[1750172417536,16.45692272,148.77,148.72,16.45692272]
[1750172417945,16.45692272,148.76,148.7,23.53732346]
[1750172418122,16.45692272,148.76,148.73,6.72359308]
[1750172418322,16.45692272,148.75,148.73,6.72359308]
[1750172418566,149.0,148.79,148.73,6.72359308]
[1750172418848,16.45692272,148.76,148.73,6.72359308]
[1750172419024,16.45692272,148.77,148.73,6.72359308]
[1750172419335,149.0,148.79,148.73,6.72359308]
[1750172419527,149.0,148.79,148.75,16.45692272]
[1750172419848,149.0,148.79,148.77,16.45692272]
[1750172420059,149.0,148.79,148.75,16.45692272]
[1750172420348,149.0,148.79,148.76,23.17915988]
[1750172420558,16.45692272,148.77,148.74,6.72314105]
[1750172420735,155.72088621,148.79,148.71,6.72449734]
[1750172421224,149.0,148.79,148.74,16.45692272]
[1750172421553,149.0,148.79,148.75,16.45692272]
[1750172421871,18.79181043,148.84,148.72,26.0]
[1750172422154,6.86123702,148.83,148.73,6.72359308]
[1750172422456,16.45692272,148.79,148.74,16.45692272]
[1750172422640,0.14216157,148.84,148.75,16.45692272]
[1750172422956,16.45692272,148.8,148.76,16.45692272]
[1750172423255,0.20179686,148.75,148.73,23.5325758]
[1750172423556,0.20179686,148.75,148.74,16.45692272]
[1750172423724,0.20179686,148.75,148.73,23.5325758]
[1750172424542,0.20179686,148.75,148.73,6.72359308]
[1750172424837,16.45692272,148.74,148.71,6.72449734]
[1750172425025,16.45692272,148.72,148.71,6.72449734]
[1750172425227,0.20179686,148.75,148.71,6.72449734]
[1750172425447,0.20179686,148.75,148.71,23.18142006]
[1750172425620,0.20179686,148.75,148.71,6.22449734]
[1750172426296,16.45692272,148.73,148.68,16.81374446]
[1750172426438,16.45692272,148.72,148.68,16.81374446]
[1750172426640,16.45692272,148.72,148.67,6.72630658]
[1750172426841,16.45692272,148.72,148.68,16.45692272]
[1750172427044,0.20179686,148.75,148.67,23.54207304]
[1750172427252,16.45692272,148.74,148.7,16.45692272]
[1750172427435,0.20179686,148.75,148.69,16.45692272]
[1750172427635,16.45692272,148.73,148.69,16.45692272]
[1750172427834,16.65871958,148.75,148.67,23.54207304]
[1750172428121,0.20179686,148.75,148.72,16.45692272]
[1750172428356,0.20179686,148.75,148.67,6.72630658]
[1750172428660,16.45692272,148.71,148.67,23.1832293]
[1750172428854,16.45692272,148.72,148.67,23.1832293]
[1750172429236,32.72239633,148.76,148.67,6.72630658]
[1750172429441,16.45692272,148.74,148.69,16.45692272]
[1750172429772,149.0,148.79,148.67,6.72630658]
[1750172429773,16.45692272,148.71,148.67,6.72630658]
[1750172429985,4.81839418,148.7,148.67,6.72630658]
[1750172430124,7.22826846,148.75,148.67,6.72630658]
[1750172430435,7.22826846,148.75,148.66,8.12632384]
[1750172430436,6.72359308,148.73,148.66,8.12632384]
[1750172430635,4.81823746,148.72,148.69,16.45692272]
[1750172430836,4.81823746,148.72,148.66,24.94322145]
[1750172430837,7.22879536,148.77,148.71,16.45692272]
[1750172431040,16.45692272,148.77,148.73,16.45692272]
[1750172431236,149.0,148.78,148.67,0.14216157]
[1750172431437,149.0,148.78,148.7,16.45692272]
[1750172431438,4.82000908,148.77,148.7,16.45692272]
[1750172431747,4.82000908,148.77,148.66,24.94322145]
[1750172431748,16.45692272,148.71,148.66,8.12632384]
[1750172431950,16.45692272,148.68,148.66,8.12632384]
[1750172432131,16.45692272,148.68,148.66,1.3997008]
[1750172432458,155.72237057,148.76,148.67,16.45692272]
[1750172432639,149.0,148.76,148.7,16.45692272]
[1750172432840,4.81753209,148.75,148.66,24.58323448]
[1750172433042,16.45692272,148.68,148.66,1.3997008]
[1750172433352,30.98016073,148.73,148.66,1.3997008]
[1750172433533,16.45692272,148.68,148.66,1.3997008]
[1750172434059,149.0,148.72,148.66,24.58327342]
[1750172434565,16.45692272,148.7,148.66,24.58327342]
[1750172434868,11.40500398,148.7,148.66,19.53135468]
[1750172435068,11.40500398,148.71,148.66,8.1263507]
[1750172435271,149.0,148.72,148.67,11.40500398]
[1750172435630,11.40500398,148.68,148.66,1.3997008]
[1750172435863,155.72413083,148.72,148.66,1.3997008]
[1750172436160,155.72413083,148.72,148.66,8.12636405]
[1750172436462,11.40500398,148.68,148.66,1.3997008]
[1750172436640,11.40500398,148.67,148.66,1.3997008]
[1750172436843,6.72576266,148.69,148.66,1.3997008]
[1750172437042,11.40500398,148.67,148.66,1.3997008]
[1750172437446,6.72576266,148.69,148.66,1.3997008]
[1750172437644,11.40500398,148.67,148.66,1.3997008]
[1750172437940,155.72463093,148.71,148.66,1.3997008]
[1750172438141,11.40500398,148.69,148.66,8.12642246]
[1750172438635,149.0,148.71,148.66,19.53142644]
[1750172438835,149.0,148.77,148.7,11.40500398]
[1750172439035,149.0,148.8,148.69,7.9406]
[1750172439236,11.40500398,148.75,148.69,7.9406]
[1750172439461,11.40500398,148.77,148.69,7.9406]
[1750172439643,11.40500398,148.77,148.68,11.40500398]
[1750172439964,11.40500398,148.73,148.66,24.94332007]
[1750172440275,11.40500398,148.7,148.66,8.12642246]
[1750172440434,11.40500398,148.69,148.66,8.12642246]
[1750172440635,6.72438475,148.72,148.66,8.12642246]
[1750172440847,16.47311158,148.71,148.66,24.59953404]
[1750172441047,16.47311158,148.7,148.66,24.59953404]
[1750172441453,149.28432314,148.76,148.69,16.47311158]
[1750172441454,149.0,148.76,148.69,16.47311158]
[1750172441685,16.47311158,148.7,148.66,8.12642246]
[1750172441837,44.64964886,148.74,148.66,1.3997008]
[1750172442044,16.47311158,148.67,148.66,1.3997008]
[1750172442242,16.47311158,148.7,148.66,1.3997008]
[1750172442479,149.0,148.69,148.66,1.3997008]
[1750172442778,16.47311158,148.67,148.66,1.3997008]
[1750172443183,35.54924515,148.67,148.66,1.3997008]
[1750172443368,47.59310736,148.67,148.66,1.19765679]
[1750172443678,35.54924515,148.67,148.66,1.19765679]
[1750172443966,6.72585418,148.68,148.66,1.19765679]
[1750172444558,7.22630658,148.67,148.66,1.19765679]
[1750172444778,16.97311158,148.67,148.66,1.19765679]
[1750172444975,23.19941816,148.67,148.66,1.19765679]
[1750172445407,16.47311158,148.67,148.66,1.19765679]
[1750172445581,16.47311158,148.68,148.66,1.19765679]